bitfinex-derivatives/quotes_BTCF0:USTF0_20250330
["timestamp","ask_amount","ask_price","bid_price","bid_amount"]
[1743301633388,0.00204001,83132.0,83131.0,0.54702687]
[1743301633695,0.12236431,83132.0,83131.0,0.18622687]
[1743301640992,0.23053146,83132.0,83131.0,0.18622687]
[1743301646096,0.26353146,83132.0,83131.0,0.18622687]
[1743301652798,0.14320716,83132.0,83131.0,0.18622687]
[1743301653596,0.17620716,83132.0,83131.0,0.18622687]
[1743301656004,0.11020716,83132.0,83131.0,0.60272687]
[1743301656298,0.1202984,83150.0,83141.0,0.1203112]
[1743301656495,0.18117746,83142.0,83141.0,0.4817512]
[1743301657305,0.00076,83142.0,83141.0,0.5453512]
[1743301657494,0.00376,83142.0,83141.0,0.5453512]
[1743301658091,0.03226,83142.0,83141.0,0.5453512]
[1743301658502,0.06476,83142.0,83141.0,0.5453512]
[1743301659191,0.06476,83142.0,83141.0,0.1845512]
[1743301659592,0.06476,83142.0,83141.0,0.1965152]
[1743301662695,0.064,83142.0,83141.0,0.1965152]
[1743301662898,0.06476,83142.0,83141.0,0.1965152]
[1743301665899,0.064,83142.0,83141.0,0.1965152]
[1743301666093,0.06484,83142.0,83141.0,0.1965152]
[1743301668495,0.064,83142.0,83141.0,0.1965152]
[1743301668698,0.06484,83142.0,83141.0,0.1965152]
[1743301668898,0.06484,83142.0,83141.0,0.1845512]
[1743301670309,0.064,83142.0,83141.0,0.1845512]
[1743301670604,0.06484,83142.0,83141.0,0.1845512]
[1743301670803,0.064,83142.0,83141.0,0.1845512]
[1743301671106,0.06476,83142.0,83141.0,0.1845512]
[1743301671302,0.064,83142.0,83141.0,0.1845512]
[1743301672098,0.06476,83142.0,83141.0,0.1845512]
[1743301673309,0.06476,83142.0,83141.0,0.19646025]
[1743301673709,0.064,83142.0,83141.0,0.19646025]
[1743301673911,0.06476,83142.0,83141.0,0.19646025]
[1743301674305,0.06476,83142.0,83141.0,0.1845512]
[1743301674705,0.1850698,83142.0,83141.0,0.1845512]
[1743301675712,0.06476,83142.0,83141.0,0.1845512]
[1743301678618,0.064,83142.0,83141.0,0.1845512]
[1743301678818,0.06476,83142.0,83141.0,0.1845512]
[1743301680113,0.064,83142.0,83141.0,0.1845512]
[1743301680317,0.064,83142.0,83141.0,0.1839112]
[1743301683229,0.00018039,83148.0,83147.0,0.1203025]
[1743301683631,0.00018039,83148.0,83147.0,0.2143025]
[1743301684920,0.01528571,83148.0,83147.0,0.1203025]
[1743301685122,0.04662571,83148.0,83147.0,0.1210225]
[1743301685322,0.03152039,83148.0,83147.0,0.5773225]
[1743301685624,0.03068039,83148.0,83147.0,0.5773225]
[1743301697636,0.52688681,83148.0,83147.0,0.00072]
[1743301697840,0.55834681,83148.0,83147.0,0.00072]
[1743301698041,0.67506681,83148.0,83147.0,0.00072]
[1743301699135,0.67506681,83148.0,83147.0,0.1210225]
[1743301699437,0.55476571,83148.0,83147.0,0.1210225]
[1743301699739,0.67506681,83148.0,83147.0,0.1210225]
[1743301699935,0.70716681,83148.0,83147.0,0.1210225]
[1743301700440,0.70916681,83148.0,83147.0,0.1210225]
[1743301701337,0.70916681,83148.0,83147.0,0.00072]
[1743301703032,0.70916681,83148.0,83147.0,0.1203025]
[1743301703232,0.70916681,83148.0,83147.0,0.1209425]
[1743301705832,0.70916681,83148.0,83147.0,0.00064]
[1743301706247,0.1203025,83147.0,83146.0,0.1203828]
[1743301706545,0.13624782,83147.0,83146.0,0.1203828]
[1743301706741,0.19834782,83147.0,83146.0,0.1203828]
[1743301706948,0.31861601,83147.0,83146.0,8e-05]
[1743301707346,0.1203199,83136.0,83135.0,0.0601593]
[1743301707546,0.13542522,83136.0,83135.0,0.0609593]
[1743301707843,0.1210799,83136.0,83135.0,0.0609593]
[1743301708044,0.1835799,83136.0,83135.0,0.0609593]
[1743301708240,0.19868522,83136.0,83135.0,0.0609593]
[1743301709035,0.19868522,83136.0,83135.0,0.0008]
[1743301709448,0.19868522,83136.0,83135.0,0.0018]
[1743301711249,0.19868522,83136.0,83135.0,0.001]
[1743301711644,0.33125422,83136.0,83135.0,0.001]
[1743301712845,0.33125422,83136.0,83135.0,0.00172]
[1743301713348,0.33125422,83136.0,83135.0,0.001]
[1743301713949,0.13542522,83135.0,83131.0,0.00048117]
[1743301714162,0.13542962,83132.0,83131.0,0.00048117]
[1743301714345,0.13622962,83132.0,83131.0,0.00048117]
[1743301714648,0.0601699,83122.0,83116.0,0.3608]
[1743301714856,0.1203431,83119.0,83118.0,0.1811938]
[1743301715155,0.1201031,83119.0,83118.0,0.1811938]
[1743301715358,0.2167031,83119.0,83118.0,0.1811938]
[1743301716048,0.2167031,83119.0,83118.0,0.2122938]
[1743301716353,0.1852031,83119.0,83118.0,0.2122938]
[1743301716557,0.1862031,83119.0,83118.0,0.2122938]
[1743301716856,0.1872031,83119.0,83118.0,0.2122938]
[1743301717244,0.19902702,83119.0,83118.0,0.2122938]
[1743301717655,0.20787546,83119.0,83118.0,0.2122938]
[1743301718240,0.20587546,83119.0,83118.0,0.2112938]
[1743301720249,0.07470844,83119.0,83118.0,0.2112938]
[1743301720651,0.08981376,83119.0,83118.0,0.2112938]
[1743301721142,0.21015686,83119.0,83118.0,0.2112938]
[1743301722055,0.17725686,83119.0,83118.0,0.03078]
[1743301722252,0.17725686,83119.0,83118.0,0.0301]
[1743301722750,0.18673646,83119.0,83118.0,0.03086]
[1743301723155,0.18673646,83119.0,83118.0,0.1504445]
[1743301723856,0.18673646,83119.0,83118.0,0.1510845]
[1743301724059,0.21893646,83119.0,83118.0,0.1510845]
[1743301725652,0.21893646,83119.0,83118.0,0.03074]
[1743301725860,0.21893646,83119.0,83118.0,0.0301]
[1743301726352,0.21893646,83119.0,83118.0,0.06364]
[1743301726751,0.21893646,83119.0,83118.0,0.063]
[1743301726950,0.21893646,83119.0,83118.0,0.06376]
[1743301727160,0.21893646,83119.0,83118.0,0.063]
[1743301727459,0.21893646,83119.0,83118.0,0.06364]
[1743301727657,0.21893646,83119.0,83118.0,0.063]
[1743301728565,0.21893646,83119.0,83118.0,0.06372]
[1743301728950,0.21893646,83119.0,83118.0,0.1833445]
[1743301729856,0.20383114,83119.0,83118.0,0.1833445]
[1743301730063,0.21893646,83119.0,83118.0,0.1840645]
[1743301730462,0.18673646,83119.0,83118.0,0.1840645]
[1743301730657,0.17725686,83119.0,83118.0,0.1840645]
[1743301732756,0.53805686,83119.0,83118.0,0.1840645]
[1743301735653,0.65477686,83119.0,83118.0,0.1840645]
[1743301743975,0.29397686,83119.0,83118.0,0.1840645]
[1743301744197,0.65477686,83119.0,83118.0,0.1840645]
[1743301744387,0.29397686,83119.0,83118.0,0.1840645]
[1743301744588,0.83519432,83119.0,83118.0,0.1840645]
[1743301747882,0.53290927,83119.0,83118.0,0.1840645]
[1743301748082,0.89370927,83119.0,83118.0,0.1840645]
[1743301748893,0.53290927,83119.0,83118.0,0.1840645]
[1743301749195,0.89370927,83119.0,83118.0,0.1840645]
[1743301749380,0.53290927,83119.0,83118.0,0.1840645]
[1743301749578,0.89370927,83119.0,83118.0,0.1840645]
[1743301750095,0.53290927,83119.0,83118.0,0.1840645]
[1743301750284,0.89370927,83119.0,83118.0,0.1840645]
[1743301750485,0.53290927,83119.0,83118.0,0.1840645]
[1743301750694,0.89370927,83119.0,83118.0,0.1840645]
[1743301754188,0.53290927,83119.0,83118.0,0.1840645]
[1743301754388,0.89370927,83119.0,83118.0,0.1840645]
[1743301755297,0.71329181,83119.0,83118.0,0.1840645]
[1743301756597,0.35249181,83119.0,83118.0,0.1840645]
[1743301757686,0.05927495,83119.0,83118.0,0.1840645]
[1743301758295,0.05927495,83119.0,83118.0,0.19614318]
[1743301763208,0.00076,83119.0,83118.0,0.19614318]
[1743301763405,0.0307,83120.0,83119.0,0.1203431]
[1743301763603,0.03146,83120.0,83119.0,0.1209831]
[1743301763794,0.03146,83120.0,83119.0,0.1827831]
[1743301768713,0.06226,83120.0,83119.0,0.1827831]
[1743301776812,0.03156,83120.0,83119.0,0.1827831]
[1743301777008,0.14433606,83124.0,83123.0,0.1203373]
[1743301777208,0.14509606,83124.0,83123.0,0.1209773]
[1743301777415,0.19130138,83124.0,83123.0,0.1209773]
[1743301777715,0.22130138,83124.0,83123.0,0.1209773]
[1743301777931,0.22130138,83124.0,83123.0,0.2167773]
[1743301779821,0.19130138,83124.0,83123.0,0.2167773]
[1743301780009,0.14509606,83124.0,83123.0,0.2167773]
[1743301781516,0.00076,83124.0,83123.0,0.2167773]
[1743301781720,0.10820464,83126.0,83125.0,0.1203344]
[1743301781921,0.10896464,83126.0,83125.0,0.1209744]
[1743301782118,0.12406996,83126.0,83125.0,0.1209744]
[1743301783815,0.12406996,83126.0,83125.0,0.5374744]
[1743301785018,0.01586532,83126.0,83125.0,0.5374744]
[1743301785426,0.01586532,83126.0,83125.0,0.8982744]
[1743301785622,0.01594532,83126.0,83125.0,0.8982744]
[1743301786921,0.01510532,83126.0,83125.0,0.8982744]
[1743301787122,0.01586532,83126.0,83125.0,0.8982744]
[1743301787325,0.01586532,83126.0,83125.0,0.5374744]
[1743301787823,0.13619822,83126.0,83125.0,0.5374744]
[1743301788027,0.19859822,83126.0,83125.0,0.5374744]
[1743301789813,0.19859822,83126.0,83125.0,0.1209744]
[1743301791932,0.07826532,83126.0,83125.0,0.1209744]
[1743301792232,0.07826532,83126.0,83125.0,0.1519744]
[1743301792428,0.07826532,83126.0,83125.0,0.1852744]
[1743301792628,0.06316,83126.0,83125.0,0.1852744]
[1743301792827,0.07826532,83126.0,83125.0,0.1852744]
[1743301800723,0.03296,83126.0,83125.0,0.5460744]
[1743301801735,0.06626,83126.0,83125.0,0.1852744]
[1743301801936,0.20169822,83126.0,83125.0,0.1519744]
[1743301804734,0.20169822,83126.0,83125.0,0.1209744]
[1743301810249,0.20169822,83126.0,83125.0,0.1203344]
[1743301810448,0.20169822,83126.0,83125.0,0.1210544]
[1743301812349,0.440628,83126.0,83125.0,0.1210544]
[1743301813439,0.440628,83126.0,83125.0,0.00072]
[1743301813655,0.1203416,83121.0,83119.0,0.1203417]
[1743301813944,0.5777416,83120.0,83119.0,0.1204217]
[1743301814243,0.59368692,83120.0,83119.0,0.1209817]
[1743301815240,0.59368692,83120.0,83119.0,0.00064]
[1743301815462,0.1203431,83119.0,83118.0,8e-05]
[1743301815639,0.1203474,83116.0,83115.0,0.00048126]
[1743301815949,0.1211074,83116.0,83115.0,0.03290126]
[1743301816444,0.19832875,83116.0,83115.0,0.03290126]
[1743301816653,0.19832875,83116.0,83115.0,0.18365016]
[1743301817839,0.19832875,83116.0,83115.0,0.03290126]
[1743301818044,0.21343407,83116.0,83115.0,0.00120126]
[1743301818241,0.21343407,83116.0,83110.0,0.21492337]
[1743301818242,0.1203547,83111.0,83110.0,0.21492337]
[1743301818452,0.25310003,83111.0,83110.0,0.21556337]
[1743301818835,0.37342177,83111.0,83110.0,0.21556337]
[1743301819150,0.43622177,83111.0,83110.0,0.21556337]
[1743301820646,0.0601803,83107.0,83100.0,0.1]
[1743301820843,0.49627442,83101.0,83100.0,0.10064]
[1743301821039,0.61423442,83101.0,83100.0,0.10064]
[1743301821445,0.73455616,83101.0,83100.0,0.10064]
[1743301821652,0.79775616,83101.0,83100.0,0.10064]
[1743301823248,0.79875616,83101.0,83100.0,0.10064]
[1743301824948,0.0601948,83087.0,83084.0,0.0601963]
[1743301825143,0.1203938,83085.0,83084.0,0.1243363]
[1743301825455,0.4825538,83085.0,83084.0,0.1243363]
[1743301825650,0.5157538,83085.0,83084.0,0.0608363]
[1743301825950,0.5157538,83085.0,83084.0,0.1203938]
[1743301826156,0.65121851,83085.0,83084.0,0.1210338]
[1743301826351,0.68541851,83085.0,83084.0,0.1538338]
[1743301826547,0.6944694,83085.0,83084.0,0.1538338]
[1743301826748,0.70665042,83085.0,83084.0,0.1538338]
[1743301827251,0.70565042,83085.0,83084.0,0.03344]
[1743301827555,0.70565042,83085.0,83084.0,0.1531938]
[1743301827747,0.70665042,83085.0,83084.0,0.1539138]
[1743301828445,0.71519364,83085.0,83084.0,0.1539138]
[1743301828757,0.71519364,83085.0,83084.0,0.1211138]
[1743301829251,0.71519364,83085.0,83084.0,0.1516138]
[1743301830545,0.71519364,83085.0,83084.0,0.03122]
[1743301831648,0.71519364,83085.0,83084.0,0.1516138]
[1743301831849,0.71519364,83085.0,83084.0,0.1836938]
[1743301832054,0.71519364,83085.0,83084.0,0.1843338]
[1743301832956,0.51329452,83085.0,83084.0,0.1843338]
[1743301833152,0.51332743,83085.0,83084.0,0.1843338]
[1743301833849,0.63004743,83085.0,83084.0,0.1843338]
[1743301834853,0.51332743,83085.0,83084.0,0.1843338]
[1743301835060,0.50965513,83085.0,83084.0,0.1843338]
[1743301835251,0.62050421,83085.0,83084.0,0.1843338]
[1743301836160,0.25970421,83085.0,83084.0,0.1843338]
[1743301837853,0.29030421,83085.0,83084.0,0.1843338]
[1743301838557,0.30540953,83085.0,83084.0,0.06394]
[1743301838760,0.42576892,83085.0,83084.0,0.06394]
[1743301838959,0.42576892,83085.0,83084.0,0.1843338]
[1743301839260,0.43519339,83085.0,83084.0,0.1843338]
[1743301839563,0.79599339,83085.0,83084.0,0.1843338]
[1743301840351,0.78656892,83085.0,83084.0,0.1843338]
[1743301842763,0.42576892,83085.0,83084.0,0.1843338]
[1743301842950,0.78656892,83085.0,83084.0,0.1843338]
[1743301844756,0.42576892,83085.0,83084.0,0.1843338]
[1743301844956,0.78656892,83085.0,83084.0,0.1843338]
[1743301846163,0.78656892,83085.0,83084.0,0.1836938]
[1743301847355,0.50011191,83085.0,83084.0,0.1836938]
[1743301847562,0.50011191,83085.0,83084.0,0.1843338]
[1743301849365,0.64390457,83085.0,83084.0,0.1843338]
[1743301850666,0.76429687,83085.0,83084.0,0.1843338]
[1743301851070,0.64390457,83085.0,83084.0,0.1843338]
[1743301852163,0.40349687,83085.0,83084.0,0.1843338]
[1743301852766,0.43389687,83085.0,83084.0,0.1843338]
[1743301854061,0.29010421,83085.0,83084.0,0.1843338]
[1743301854468,0.65090421,83085.0,83084.0,0.1843338]
[1743301858063,0.70944231,83085.0,83084.0,0.1843338]
[1743301859070,0.34864231,83085.0,83084.0,0.1843338]
[1743301860570,0.19785001,83085.0,83084.0,0.1843338]
[1743301860868,0.31824231,83085.0,83084.0,0.1843338]
[1743301861061,0.38024231,83085.0,83084.0,0.1843338]
[1743301864676,0.25985001,83085.0,83084.0,0.1843338]
[1743301864976,0.21625726,83088.0,83087.0,0.1203894]
[1743301865281,0.21729727,83088.0,83087.0,0.1211494]
[1743301865972,0.21729727,83088.0,83087.0,0.1835494]
[1743301866479,0.21729727,83088.0,83087.0,0.19546733]
[1743301867176,0.21625726,83088.0,83087.0,0.19546733]
[1743301867383,0.21625726,83089.0,83088.0,0.120388]
[1743301867678,0.21625726,83089.0,83088.0,0.184728]
[1743301871880,0.21721727,83089.0,83088.0,0.184728]
[1743301873380,0.00096001,83089.0,83088.0,0.184728]
[1743301873974,0.1082072,83090.0,83089.0,0.1203865]
[1743301874175,0.10916721,83090.0,83089.0,0.1210665]
[1743301874383,0.10916721,83090.0,83089.0,0.1862665]
[1743301874578,0.10916721,83090.0,83089.0,0.5470665]
[1743301877791,0.00096001,83090.0,83089.0,0.9635665]
[1743301878090,0.0322,83096.0,83095.0,0.1203778]
[1743301878284,0.0662,83096.0,83095.0,0.1210978]
[1743301878492,0.08130532,83096.0,83095.0,0.1210978]
[1743301878880,0.08130532,83096.0,83095.0,0.1827978]
[1743301880383,0.08530532,83096.0,83095.0,0.1827978]
[1743301881088,0.19351252,83096.0,83095.0,0.1827978]
[1743301882490,0.1132072,83096.0,83095.0,0.5435978]
[1743301882685,0.1122072,83096.0,83095.0,0.5435978]
[1743301883588,0.11324721,83096.0,83095.0,0.5435978]
[1743301884789,0.00504001,83096.0,83095.0,0.5435978]
[1743301884983,0.004,83096.0,83095.0,0.5435978]
[1743301887886,0.002,83096.0,83095.0,0.5435978]
[1743301888081,0.1082072,83102.0,83101.0,0.1203691]
[1743301888385,0.1091272,83102.0,83101.0,0.5375091]
[1743301888791,0.00092,83102.0,83101.0,0.5375091]
[1743301889000,0.0626,83105.0,83104.0,0.1203648]
[1743301889292,0.07862532,83105.0,83104.0,0.1210048]
[1743301889986,0.07862532,83105.0,83104.0,0.1846048]
[1743301891385,0.07962532,83105.0,83104.0,0.1846048]
[1743301896800,0.03422,83105.0,83104.0,0.5454048]
[1743301897798,0.04275251,83105.0,83104.0,0.5454048]
[1743301898010,0.04275251,83105.0,83104.0,0.5464048]
[1743301898997,0.04275251,83105.0,83104.0,0.1876048]
[1743301899203,0.04275251,83105.0,83104.0,0.5484048]
[1743301899496,0.04183251,83105.0,83104.0,0.5474048]
[1743301899702,0.04183251,83105.0,83104.0,0.5484048]
[1743301899896,0.0001805,83109.0,83107.0,0.1203605]
[1743301900103,0.0001805,83109.0,83108.0,0.214759]
[1743301900404,0.0001805,83109.0,83108.0,0.215479]
[1743301903100,0.0314805,83109.0,83108.0,0.215479]
[1743301903406,0.0314805,83109.0,83108.0,0.216479]
[1743301903999,0.0314805,83109.0,83108.0,0.215479]
[1743301904196,0.0314805,83109.0,83108.0,0.631979]
[1743301904596,0.0314805,83109.0,83108.0,0.992779]
[1743301904800,0.0314805,83109.0,83108.0,0.631979]
[1743301904990,0.0314805,83109.0,83108.0,0.992779]
[1743301906096,0.0314805,83109.0,83108.0,0.631979]
[1743301906296,0.0314805,83109.0,83108.0,0.992779]
[1743301907697,0.0314805,83109.0,83108.0,0.631979]
[1743301907903,0.0314805,83109.0,83108.0,0.992779]
[1743301909608,0.10810136,83116.0,83115.0,0.1203489]
[1743301910202,0.10910136,83116.0,83115.0,0.1210689]
[1743301910399,0.10910136,83116.0,83115.0,0.5797689]
[1743301910598,0.10810136,83116.0,83115.0,0.5797689]
[1743301911202,0.11010136,83116.0,83115.0,0.5797689]
[1743301912106,0.0305,83122.0,83121.0,0.1203402]
[1743301912303,0.0326,83128.0,83124.0,0.0601677]
[1743301912610,0.03352,83128.0,83127.0,0.1203315]
[1743301912796,0.03352,83128.0,83127.0,0.1212515]
[1743301913001,0.04862532,83128.0,83127.0,0.1212515]
[1743301914005,0.05862532,83128.0,83127.0,0.1212515]
[1743301916606,0.04352,83128.0,83127.0,0.13330536]
[1743301917213,0.00592,83128.0,83127.0,0.49410536]
[1743301917511,0.0645,83132.0,83131.0,0.1203257]
[1743301917697,0.0645,83132.0,83131.0,0.1210057]
[1743301917901,0.07960532,83132.0,83131.0,0.1210057]
[1743301918299,0.0001805,83136.0,83135.0,0.1203199]
[1743301918508,0.0011805,83136.0,83135.0,0.4818399]
[1743301918711,0.01628582,83136.0,83135.0,0.4818399]
[1743301919017,0.01628582,83136.0,83135.0,0.5139399]
[1743301919311,0.0011805,83136.0,83135.0,0.5139399]
[1743301920521,0.0041805,83136.0,83135.0,0.5139399]
[1743301922214,0.0031805,83136.0,83135.0,0.5139399]
[1743301925303,0.0031805,83136.0,83135.0,0.1531399]
[1743301925500,0.0031805,83136.0,83135.0,0.5139399]
[1743301927203,0.3612,83172.0,83155.0,0.120291]
[1743301927404,0.0014,83156.0,83155.0,0.121011]
[1743301927614,0.04920532,83156.0,83155.0,0.121011]
[1743301928615,0.11900532,83156.0,83155.0,0.121011]
[1743301928805,0.12400532,83156.0,83155.0,0.121011]
[1743301930710,0.06020532,83156.0,83155.0,0.121011]
[1743301931115,0.09260532,83156.0,83155.0,0.154311]
[1743301931309,0.09160532,83156.0,83155.0,0.154311]
[1743301931511,0.08560532,83156.0,83155.0,0.154311]
[1743301931703,0.08860532,83156.0,83155.0,0.154311]
[1743301932712,0.05620532,83156.0,83155.0,0.154311]
[1743301934008,0.0084,83156.0,83155.0,0.154311]
[1743301934213,1e-08,83156.0,83155.0,0.154311]
[1743301935110,1e-08,83156.0,83155.0,0.570811]
[1743301936320,1e-08,83156.0,83155.0,0.602511]
[1743301938916,0.032,83160.0,83159.0,0.1202852]
[1743301939113,0.04710532,83160.0,83159.0,0.1209252]
[1743301939513,0.04710532,83160.0,83159.0,0.1840252]
[1743301940219,1e-08,83161.0,83160.0,0.1202837]
[1743301940423,0.00018038,83164.0,83161.0,0.0601405]
[1743301940723,0.00018038,83164.0,83163.0,0.1202794]
[1743301940923,0.00018038,83164.0,83163.0,0.1209594]
[1743301941416,0.00018038,83164.0,83163.0,0.2133594]
[1743301941618,0.00318038,83164.0,83163.0,0.2133594]
[1743301942417,0.00718038,83164.0,83163.0,0.2133594]
[1743301944624,0.0304,83171.0,83169.0,0.1202707]
[1743301944625,0.0303,83170.0,83169.0,0.1202707]
[1743301944918,0.0303,83170.0,83169.0,0.1209107]
[1743301945123,0.0317,83170.0,83169.0,0.1209107]
[1743301945918,0.0397,83170.0,83169.0,0.1209107]
[1743301947125,0.0397,83170.0,83169.0,0.13316007]
[1743301948025,0.04062,83170.0,83169.0,0.13316007]
[1743301948221,0.0397,83170.0,83169.0,0.16586007]
[1743301948622,0.04062,83170.0,83169.0,0.16586007]
[1743301948825,0.0397,83170.0,83169.0,0.16586007]
[1743301949027,0.0347,83170.0,83169.0,0.16586007]
[1743301949416,0.0347,83170.0,83169.0,0.1536107]
[1743301950533,0.0317,83170.0,83169.0,0.1536107]
[1743301954925,0.0317,83170.0,83169.0,0.1840107]
[1743301955328,0.0317,83170.0,83169.0,0.2140107]
[1743301956325,0.11656,83189.0,83177.0,0.1202592]
[1743301956530,0.00110038,83178.0,83177.0,0.1208992]
[1743301957220,0.00110038,83178.0,83177.0,0.1825992]
[1743301957629,0.00210038,83178.0,83177.0,0.1825992]
[1743301961233,0.00118038,83178.0,83177.0,0.1825992]
[1743301962033,0.00118038,83178.0,83177.0,0.19466639]
[1743301962538,0.0619,83186.0,83185.0,0.1202476]
[1743301962842,0.03112,83186.0,83185.0,0.1208876]
[1743301963026,0.00092,83186.0,83185.0,0.1208876]
[1743301963432,0.22884175,83200.0,83191.0,0.1202389]
[1743301963631,0.21701726,83192.0,83191.0,0.1209589]
[1743301965041,0.27701726,83192.0,83191.0,0.1209589]
[1743301967542,0.24701726,83192.0,83191.0,0.1209589]
[1743301969239,0.03076,83192.0,83191.0,0.1209589]
[1743301970431,0.00076,83192.0,83191.0,0.1209589]
[1743301973942,0.00076,83192.0,83191.0,0.1529589]
[1743301975343,0.00076,83192.0,83191.0,0.1846589]
[1743301976347,0.00076,83192.0,83191.0,0.2158589]
[1743301976851,0.00018038,83194.0,83193.0,0.120236]
[1743301977058,0.00086038,83194.0,83193.0,0.120876]
[1743302005379,0.00086038,83194.0,83193.0,0.481676]
[1743302008577,0.00018038,83194.0,83193.0,0.481676]
[1743302008767,0.17487764,83199.0,83198.0,0.1202288]
[1743302008972,0.20719764,83199.0,83198.0,0.1209088]
[1743302009275,0.06322,83199.0,83198.0,0.1209088]
[1743302009672,0.06322,83199.0,83198.0,0.1870088]
[1743302010181,0.03162,83199.0,83198.0,0.1870088]
[1743302010569,0.06222,83199.0,83198.0,0.1870088]
[1743302017288,0.03162,83199.0,83198.0,0.1870088]
[1743302027985,0.00072,83199.0,83198.0,0.1870088]
[1743302029597,0.00072,83199.0,83198.0,0.19878222]
[1743302032491,0.00072,83199.0,83198.0,0.22898222]
[1743302034793,0.10889477,83199.0,83198.0,0.22898222]
[1743302034992,0.10889477,83199.0,83198.0,0.2172088]
[1743302035195,0.10889477,83199.0,83198.0,0.03358]
[1743302035196,0.26112217,83199.0,83198.0,0.03358]
[1743302035496,0.68692217,83199.0,83198.0,0.00068]
[1743302035697,0.68692217,83199.0,83198.0,0.1209088]
[1743302035698,0.80711664,83199.0,83198.0,0.1209088]
[1743302038197,0.75740266,83199.0,83198.0,0.1209088]
[1743302040699,0.75740266,83199.0,83198.0,0.00068]
[1743302040899,0.1202288,83198.0,83197.0,8e-05]
[1743302041102,0.1209088,83198.0,83197.0,8e-05]
[1743302041303,0.1834088,83198.0,83197.0,8e-05]
[1743302041605,0.30360471,83198.0,83197.0,8e-05]
[1743302045591,0.3620655,83198.0,83197.0,8e-05]
[1743302047607,0.3620655,83198.0,83197.0,0.00072]
[1743302047805,0.3620655,83198.0,83197.0,8e-05]
[1743302049098,0.3620655,83198.0,83197.0,0.03318]
[1743302050303,0.7228655,83198.0,83197.0,0.03318]
[1743302050503,0.3620655,83198.0,83197.0,0.03318]
[1743302050706,0.7228655,83198.0,83197.0,0.03318]
[1743302052302,0.7228655,83198.0,83197.0,0.06318]
[1743302052503,0.8393455,83198.0,83197.0,0.06318]
[1743302053396,0.8393455,83198.0,83197.0,0.1834102]
[1743302053598,0.8393455,83198.0,83197.0,0.1841302]
[1743302058207,0.78088471,83198.0,83197.0,0.1841302]
[1743302061417,0.75068471,83198.0,83197.0,0.1841302]
[1743302062301,0.71838471,83198.0,83197.0,0.1841302]
[1743302065302,0.71838471,83198.0,83197.0,0.1840502]
[1743302066611,0.77684539,83198.0,83197.0,0.1840502]
[1743302067217,0.65660948,83198.0,83197.0,0.1840502]
[1743302067914,0.05914068,83198.0,83197.0,0.1840502]
[1743302070313,0.17936948,83198.0,83197.0,0.1840502]
[1743302070504,0.00068,83198.0,83197.0,0.1840502]
[1743302071706,0.1,83200.0,83199.0,0.1202274]
[1743302071906,0.10088,83200.0,83199.0,0.1211074]
[1743302076312,0.10088,83200.0,83199.0,0.4819074]
[1743302076511,0.10088,83200.0,83199.0,0.1211074]
[1743302082318,0.10850778,83204.0,83203.0,0.1202216]
[1743302082529,0.10954779,83204.0,83203.0,0.1212616]
[1743302083125,0.10954779,83204.0,83203.0,0.2188616]
[1743302083420,0.10850778,83204.0,83203.0,0.2188616]
[1743302084211,0.00011993,83207.0,83206.0,0.1202172]
[1743302084417,0.00115994,83207.0,83206.0,0.1212572]
[1743302084917,0.00115994,83207.0,83206.0,0.1857572]
[1743302085319,0.00011993,83207.0,83206.0,0.5465572]
[1743302088533,0.00011993,83207.0,83206.0,0.55873706]
[1743302093325,0.01211119,83214.0,83213.0,0.1202071]
[1743302093525,0.063,83217.0,83216.0,0.1202028]
[1743302093728,0.06404001,83217.0,83216.0,0.1212428]
[1743302094632,0.06404001,83217.0,83216.0,0.1512428]
[1743302096234,0.19620561,83217.0,83216.0,0.1512428]
[1743302100240,0.19620561,83217.0,83216.0,0.1212428]
[1743302100943,0.19620561,83217.0,83216.0,0.00104]
[1743302101143,0.1202071,83213.0,83208.0,0.03308027]
[1743302101344,0.12021,83211.0,83210.0,0.0612255]
[1743302101653,0.12125001,83211.0,83210.0,0.0612255]
[1743302101855,0.18215001,83211.0,83210.0,0.0612255]
[1743302102156,0.54295001,83211.0,83210.0,0.0612255]
[1743302102356,0.06194001,83211.0,83210.0,0.0941255]
[1743302102550,0.06194001,83211.0,83210.0,0.1266255]
[1743302103858,0.03174001,83211.0,83210.0,0.1266255]
[1743302104057,0.18215001,83211.0,83210.0,0.1266255]
[1743302108056,0.32626363,83211.0,83210.0,0.1266255]
[1743302108960,0.20605363,83211.0,83210.0,0.1266255]
[1743302109350,0.17585363,83211.0,83210.0,0.1266255]
[1743302110754,0.29606363,83211.0,83210.0,0.1266255]
[1743302110959,0.32856363,83211.0,83210.0,0.1266255]
[1743302115759,0.15195001,83211.0,83210.0,0.1266255]
[1743302116465,0.03174001,83211.0,83210.0,0.1573255]
[1743302116657,0.06274001,83211.0,83210.0,0.1573255]
[1743302117460,0.03174001,83211.0,83210.0,0.1573255]
[1743302118469,0.15195001,83211.0,83210.0,0.1573255]
[1743302119262,0.15195001,83211.0,83210.0,0.1266255]
[1743302125975,0.15195001,83211.0,83210.0,0.06652]
[1743302126171,0.15195001,83211.0,83209.0,8e-05]
[1743302126172,0.1202129,83209.0,83208.0,0.00018027]
[1743302126378,0.48205291,83209.0,83208.0,0.00122027]
[1743302126677,0.48205291,83209.0,83208.0,0.12143467]
[1743302126885,0.60223293,83209.0,83208.0,0.12143467]
[1743302127578,0.60223293,83209.0,83208.0,0.18603467]
[1743302128370,0.48205291,83209.0,83208.0,0.18603467]
[1743302129774,0.59841291,83209.0,83208.0,0.18603467]
[1743302130574,0.59841291,83209.0,83208.0,0.06582027]
[1743302131083,0.83713558,83209.0,83208.0,0.06582027]
[1743302131279,0.9573156,83209.0,83208.0,0.00018027]
[1743302134479,0.9573156,83209.0,83208.0,0.03048027]
[1743302134880,0.7770437,83209.0,83208.0,0.03048027]
[1743302136284,0.7770437,83209.0,83208.0,0.18119467]
[1743302136586,0.54050368,83209.0,83208.0,0.18231467]
[1743302136786,0.42029078,83209.0,83208.0,0.21341467]
[1743302137087,0.05949078,83209.0,83208.0,0.21341467]
[1743302138391,0.05949078,83209.0,83208.0,0.22545924]
[1743302138577,0.00104001,83209.0,83208.0,0.22545924]
[1743302138777,0.1440997,83210.0,83209.0,0.1202129]
[1743302138985,0.14513971,83210.0,83209.0,0.4820529]
[1743302139190,0.14513971,83210.0,83209.0,0.5448529]
[1743302139887,0.1440997,83210.0,83209.0,0.5448529]
[1743302140087,0.14513971,83210.0,83209.0,0.5448529]
[1743302140497,0.00104001,83210.0,83209.0,0.5448529]
[1743302140798,0.120205,83215.0,83214.0,0.1202057]
[1743302140997,0.120205,83215.0,83214.0,0.1212457]
[1743302141194,0.00064,83215.0,83214.0,0.1212457]
[1743302141395,0.00064,83215.0,83214.0,0.1852457]
[1743302142205,0.1208442,83215.0,83214.0,0.1852457]